[Event "FIDE WCCC Girls-10 2024"]
[Site "Montesilvano"]
[Date "2024.11.24"]
[Round "9.47"]
[White "Kocherha, Yelizavieta"]
[Black "Gichuga Wanjiru Wanjiku"]
[Result "1-0"]
[Annotator "NA RC"]
[ECO "C53"]
[WhiteElo "1523"]
[BlackElo "1436"]
[PlyCount "63"]
[EventDate "2024.11.18"]
[EventType "swiss"]
[EventCountry "ITA"]
[SourceTitle "playchess.com"]
[Source "ChessBase"]
[SourceQuality "1"]
[TimeControl "5400+30"]

1. e4 {[%emt 0:00:07]} e5 {[%emt 0:00:11]} 2. Nf3 {[%emt 0:00:22]} Nc6 {[%emt 0:00:20]} 3. Bc4 {[%emt 0:00:49]} h6 {[%emt 0:00:09]} 4. c3 {[%emt 0:00:26]} Bc5 {[%emt 0:00:15]} 5. d4 {[%emt 0:00:45]} exd4 {[%emt 0:00:12]} 6. cxd4 {[%emt 0:00:47]} Bb4+ {[%emt 0:00:05]} 7. Nc3 {[%emt 0:00:47]} d6 {[%emt 0:02:07]} 8. O-O {[%emt 0:04:46]} Nf6 {[%emt 0:00:15]} 9. d5 {[%emt 0:03:44]} Ne5 {[%emt 0:01:32]} 10. Qa4+ {[%emt 0:01:21]} Bd7 {[%emt 0:00:33]} 11. Qxb4 {[%emt 0:00:45]} a6 {[%emt 0:01:54]} 12. Nxe5 {[%emt 0:00:51]} c5 {[%emt 0:00:42]} 13. dxc6 {[%emt 0:00:51]} Be6 {[%emt 0:09:48]} 14. Bxe6 {[%emt 0:01:25]} fxe6 {[%emt 0:00:04]} 15. Ng6 {[%emt 0:00:29]} bxc6 {[%emt 0:01:20]} 16. Nxh8 {[%emt 0:00:20]} g5 {[%emt 0:04:00]} 17. e5 {[%emt 0:04:36]} Rb8 {[%emt 0:02:16]} 18. Qc4 {[%emt 0:00:39]} Nd7 {[%emt 0:03:16]} 19. Qxe6+ {[%emt 0:00:31]} Qe7 {[%emt 0:04:09]} 20. Qg6+ {[%emt 0:01:57]} Kf8 {[%emt 0:02:11]} 21. Qxh6+ {[%emt 0:01:03]} Ke8 {[%emt 0:00:46]} 22. exd6 {[%emt 0:01:35]} Qe5 {[%emt 0:01:09]} 23. Qg6+ {[%emt 0:00:23]} Kd8 {[%emt 0:01:03]} 24. Nf7+ {[%emt 0:00:12]} Kc8 {[%emt 0:00:48]} 25. Nxe5 {[%emt 0:00:25]} Nxe5 {[%emt 0:01:40]} 26. Qe6+ {[%emt 0:00:53]} Nd7 {[%emt 0:00:10]} 27. Qe8+ {[%emt 0:00:26]} Kb7 {[%emt 0:00:22]} 28. Qxd7+ {[%emt 0:00:06]} Ka8 {[%emt 0:00:23]} 29. Qxc6+ {[%emt 0:01:09]} Ka7 {[%emt 0:00:48]} 30. Be3+ {[%emt 0:00:26]} Rb6 {[%emt 0:00:21]} 31. Qxb6+ {[%emt 0:00:24]} Ka8 {[%emt 0:00:32]} 32. Qa7# {[%emt 0:00:08]} 1-0